[Event "Polish University-ch Open 2024"]
[Site "Lublin"]
[Date "2024.02.23"]
[Round "1.12"]
[White "Miecznik, Albert"]
[Black "Pacan-Milej, Kosma"]
[Result "0-1"]
[ECO "A48"]
[WhiteElo "1334"]
[BlackElo "2438"]
[Annotator "TA"]
[PlyCount "98"]
[EventDate "2024.02.22"]
[EventType "swiss"]
[EventCountry "POL"]
[SourceTitle "playchess.com"]
[Source "ChessBase"]
[SourceQuality "1"]
[TimeControl "600+3"]

{[%evp 9,98,-5,0,-25,-4,-4,39,22,27,32,42,43,56,46,37,27,0,10,37,-12,-16,-20,0,-20,0,-19,-20,-28,-15,-44,-7,-8,-17,-48,-16,-25,-25,-31,-26,-42,-33,-20,-26,-28,-25,-60,-58,-54,-50,-73,-64,-161,-150,-203,-172,-175,-172,-179,-175,-190,-195,-193,-195,-205,-205,-231,-232,-238,-219,-213,-190,-189,-189,-252,-214,-407,-390,-661,-377,-1199,-1108,-1202,-1078,-2465,-1431,-6512,-3475,-5451,-4962,-29990,-29991]} 1. Nf3 {[%emt 0:00:02]} Nf6 {[%emt 0:00:01]} 2. d4 {[%emt 0:00:02]} g6 {[%emt 0:00:08]} 3. Bf4 {[%emt 0:00:09]} Bg7 {[%emt 0:00:03]} 4. e3 {[%emt 0:00:05]} O-O {[%emt 0:00:03]} 5. Bd3 {[%emt 0:00:11]} d6 {[%emt 0:00:02]} 6. e4 {[%emt 0:00:38]} Nbd7 {[%emt 0:00:13][%cal Oe7e5]} 7. O-O {[%emt 0:00:09]} Nh5 {[%emt 0:00:30]} 8. Be3 {[%emt 0:01:16] White is slightly better.} e5 {[%emt 0:00:19]} 9. c3 {[%emt 0:00:10]} Qe7 {[%emt 0:00:59]} 10. Re1 {[%emt 0:00:53]} h6 {[%emt 0:00:14]} 11. Nbd2 {[%emt 0:00:25][%cal Bb1d2,Bd2f1,Bf1g3][%mdl 32]} b6 {[%emt 0:00:36]} 12. Nf1 {[%emt 0:00:18]} Bb7 {[%emt 0:00:07]} 13. Ng3 {[%emt 0:00:07]} Nf4 {[%emt 0:00:08]} 14. Qd2 {[%emt 0:00:24]} (14. Bc4 $14 {feels stronger.}) 14... Nxd3 $11 {[%emt 0:00:06]} 15. Qxd3 {[%emt 0:00:01]} Nf6 {[%emt 0:00:30]} 16. Rad1 {[%emt 0:02:06]} Rae8 {[%emt 0:00:08]} (16... exd4 {seems wilder.} 17. Nxd4 Ng4 18. Bf4 Qh4) 17. dxe5 {[%emt 0:00:16]} dxe5 {[%emt 0:00:02]} 18. h3 {[%emt 0:00:18]} Rd8 {[%emt 0:00:19]} 19. Qc4 {[%emt 0:00:38]} Kh7 {[%emt 0:00:43]} 20. Qa4 {[%emt 0:00:25]} a6 {[%emt 0:00:12]} 21. Bc1 {[%emt 0:00:41]} b5 {[%emt 0:00:11]} 22. Qb3 {[%emt 0:00:21]} Rxd1 {[%emt 0:00:23]} 23. Qxd1 {[%emt 0:00:02]} Rd8 {[%emt 0:00:04]} 24. Qc2 {[%emt 0:00:24]} Qe6 {[%emt 0:00:08]} 25. a4 {[%emt 0:00:07]} Ne8 {[%emt 0:00:41]} 26. axb5 {[%emt 0:00:15]} axb5 {[%emt 0:00:01]} 27. Rd1 {[%emt 0:00:17]} Rxd1+ {[%emt 0:00:16]} 28. Qxd1 {[%emt 0:00:47]} Nd6 {[%emt 0:00:02]} 29. Qe2 {[%emt 0:00:00]} Qa2 {[%emt 0:00:09]} 30. Kh2 {[%emt 0:00:00] White is now going downhill.} (30. Qc2 $15) 30... Qb1 $19 {[%emt 0:00:03][%csl LRc1,LRe4]} 31. Qe3 {[%emt 0:00:00]} (31. Qf1 $17 {was called for.}) 31... Nxe4 {[%emt 0:00:37]} 32. Nxe4 {[%emt 0:00:00]} Qxe4 {[%emt 0:00:02]} 33. Qc5 {[%emt 0:00:05]} Qc6 {[%emt 0:00:34]} 34. Qe7 {[%emt 0:00:01]} Qd6 {[%emt 0:00:54]} 35. Qxd6 {[%emt 0:00:08]} (35. Qxf7 $2 {loses.} Bd5 36. Qe8 e4+ 37. g3 Bc6 $19 (37... exf3 $2 38. Qxb5 Be6 39. Qf1 $19)) 35... cxd6 {[%emt 0:00:01][%mdl 4096] Endgame. KBB-KBN} 36. Nd2 {[%emt 0:00:03]} f5 {[%emt 0:00:20]} 37. Nb3 {[%emt 0:00:02]} f4 {[%emt 0:00:07]} 38. Na5 {[%emt 0:00:03]} Bd5 {[%emt 0:00:11]} 39. b3 {[%emt 0:00:00]} g5 {[%emt 0:00:11]} 40. c4 {[%emt 0:00:02]} bxc4 {[%emt 0:00:02]} 41. bxc4 {[%emt 0:00:01]} (41. Nxc4 {is a better defense.} Bf8 42. Na5) 41... Be6 {[%emt 0:00:03] White must now prevent ...d5.} 42. Ba3 $2 {[%emt 0:00:01]} (42. Nb7) 42... d5 {[%emt 0:00:18]} 43. c5 $2 {[%emt 0:00:03]} (43. cxd5 Bxd5 44. Be7) 43... d4 {[%emt 0:00:10]} 44. c6 $2 {[%emt 0:00:05]} (44. f3 d3 45. Bb4) 44... d3 {[%emt 0:00:02]} 45. Bc1 {[%emt 0:00:04]} e4 {[%emt 0:00:02] [#] Threatens to win with ...Bc3.} 46. c7 {[%emt 0:00:05]} Be5 {[%emt 0:00:06]} 47. Nc6 {[%emt 0:00:04]} Bxc7 {[%emt 0:00:03]} 48. Nd4 {[%emt 0:00:03] [#]} e3 $1 {[%emt 0:00:12] ( -> ...f3+)} 49. f3 {[%emt 0:00:06]} (49. Nf3 Bd5) 49... d2 {[%emt 0:00:03] Weighted Error Value: White=0.78/Black=0.30.  Mistake:       	White=7     	---        Inaccurate:     	White=3     	Black=5      OK:         	White=10    	Black=15     Best:        	---       	Black=1} 0-1

[Event "Polish University-ch Open 2024"]
[Site "Lublin"]
[Date "2024.02.23"]
[Round "1.13"]
[White "Koziorowicz, Michal"]
[Black "Wolak, Robert"]
[Result "1-0"]
[ECO "B12"]
[WhiteElo "2324"]
[BlackElo "1281"]
[Annotator "TA"]
[PlyCount "39"]
[EventDate "2024.02.22"]
[EventType "swiss"]
[EventCountry "POL"]
[SourceTitle "playchess.com"]
[Source "ChessBase"]
[SourceQuality "1"]
[TimeControl "600+3"]

{[%evp 15,39,-51,-52,-75,-85,-89,-115,-56,-76,-147,-170,-303,-291,-294,-21,-39,-39,-30,13,-113,29991,29992,29997,29996,29996,2209]} 1. e4 {[%emt 0:00:01]} c6 {[%emt 0:00:02][%cal Bc7c6,Bc6c5][%mdl 32]} 2. d4 {[%emt 0:00:02]} d5 {[%emt 0:00:02]} 3. e5 {[%emt 0:00:02]} Bf5 {[%emt 0:00:05]} 4. Nc3 {[%emt 0:00:04]} e6 {[%emt 0:00:15]} 5. g4 {[%emt 0:00:08]} Bg6 {[%emt 0:00:20]} 6. Nge2 {[%emt 0:00:02]} c5 {[%emt 0:01:14]} 7. h4 {[%emt 0:00:02]} h6 {[%emt 0:00:26]} 8. Nf4 {[%emt 0:00:13]} Bh7 {[%emt 0:00:26]} 9. Be3 {[%emt 0:01:15]} cxd4 {[%emt 0:00:37]} 10. Qxd4 {[%emt 0:00:08]} Nc6 $1 {[%emt 0:00:08]} 11. Qa4 {[%emt 0:00:07] Black is better.} a6 {[%emt 0:00:06] Threatens to win with ...b5.} 12. O-O-O {[%emt 0:01:30]} (12. Qb3 $142) 12... b5 $17 {[%emt 0:01:00]} 13. Bxb5 {[%emt 0:00:40]} (13. Qb3 Na5 (13... Nxe5 14. Nfxd5 exd5 15. Bg2 $16) 14. Bxb5+ axb5 15. Qxb5+ Qd7) (13. Nxb5 $142 axb5 14. Qxb5) 13... axb5 $19 {[%emt 0:00:07]} 14. Qxb5 {[%emt 0:00:02] [#]} Qd7 {[%emt 0:00:19]} (14... Qc8 $1 $19 {And now ...Rb8 would win.} 15. Bb6 Nge7) 15. Ncxd5 $11 {[%emt 0:00:21]} exd5 {[%emt 0:01:33]} 16. Nxd5 {[%emt 0:00:03][%cal Od5f6] Nf6+! is the strong threat.} Rb8 {[%emt 0:00:33]} (16... Nxe5 $2 17. Nc7+ Kd8 18. Rxd7+ (18. Nxa8 Nd3+ 19. Rxd3 Bxd3 $18) 18... Nxd7 19. Rd1 $18 (19. Nxa8 Bd3 $18)) (16... Rxa2 $2 17. Nf6+ Nxf6 18. Rxd7 Nxd7 19. Qxc6 Ra1+ 20. Kd2 Rxh1 21. Qa8+ (21. Qxh1 Be7 $18) 21... Ke7 22. Qxh1 $18) (16... Be4 $5 17. Nc3 Rb8 $17 (17... Qxg4 $2 18. Nxe4 Rc8 19. Rd4 $18)) 17. Bb6 {[%emt 0:00:17] [#]} (17. Qa4 $1 $11 {was the only way to keep the balance.} Rc8 (17... Nxe5 $2 18. Nc7+ Ke7 19. Rxd7+ Nxd7 20. Re1 $18) 18. Nb6) 17... Nd4 $2 {[%emt 0:02:24][%mdl 8192]} 18. Nc7+ {[%emt 0:00:09] White mates.} (18. Bxd4 $2 {is the wrong capture.} Rxb5 19. Nc3 Rb8 $19) 18... Ke7 {[%emt 0:00:21]} 19. Bc5+ {[%emt 0:00:04]} Kd8 {[%emt 0:00:01]} 20. Qxb8+ {[%emt 0:00:01] Weighted Error Value: White=0.40/Black=0.94.  Loses game:     	---       	Black=1      Missed win:     	---       	Black=1      Mistake:       	White=3     	---        Inaccurate:     	---       	Black=1      OK:         	White=2     	Black=2      Best:        	White=1     	Black=1      Strong:       	---       	Black=1} 1-0

[Event "Polish University-ch Open 2024"]
[Site "Lublin"]
[Date "2024.02.23"]
[Round "1.14"]
[White "Trela, Konrad"]
[Black "Walter, Szymon"]
[Result "0-1"]
[ECO "B80"]
[WhiteElo "1517"]
[BlackElo "2305"]
[Annotator "TA"]
[PlyCount "54"]
[EventDate "2024.02.22"]
[EventType "swiss"]
[EventCountry "POL"]
[SourceTitle "playchess.com"]
[Source "ChessBase"]
[SourceQuality "1"]
[TimeControl "600+3"]

{[%evp 23,54,0,0,0,0,0,0,-55,-50,-45,-33,-60,0,-58,-58,-60,-71,-124,-93,-169,-159,-144,-138,-302,-154,-304,-244,-1550,-1478,-1841,-1830,-29996,-29997]} 1. e4 {[%emt 0:00:01]} c5 {[%emt 0:00:04]} 2. Nf3 {[%emt 0:00:01]} a6 {[%emt 0:00:02]} 3. d4 {[%emt 0:00:03]} cxd4 {[%emt 0:00:01]} 4. Nxd4 {[%emt 0:00:01]} Nc6 {[%emt 0:00:07]} 5. Nc3 {[%emt 0:00:17]} e6 {[%emt 0:00:03]} 6. Nb3 {[%emt 0:00:32]} Nf6 {[%emt 0:00:03]} 7. g3 {[%emt 0:00:12]} d6 {[%emt 0:00:04]} 8. Bg2 {[%emt 0:00:03]} Be7 {[%emt 0:00:01]} 9. O-O {[%emt 0:00:01]} O-O {[%emt 0:00:01]} 10. f4 {[%emt 0:00:15]} Qc7 {[%emt 0:00:02]} 11. Be3 {[%emt 0:00:09]} b5 {[%emt 0:00:04]} 12. a3 {[%emt 0:00:07]} Bb7 {[%emt 0:00:02]} 13. g4 {[%emt 0:00:10]} Nd7 {[%emt 0:00:09][%cal Bf6d7,Bd7b6,Bb6c4][%mdl 32]} 14. g5 {[%emt 0:00:36]} Nb6 {[%emt 0:00:45]} 15. Rf3 {[%emt 0:01:15]} (15. f5 $11) 15... Nc4 $15 {[%emt 0:00:03]} 16. Bc1 {[%emt 0:00:01]} g6 {[%emt 0:02:08]} 17. Rh3 {[%emt 0:00:45]} Rfd8 {[%emt 0:00:08]} (17... f6 $15 18. gxf6 Bxf6 (18... Rxf6 19. a4 $11)) 18. Qg4 {[%emt 0:01:20]} ({Better is} 18. f5 $11) 18... b4 {[%emt 0:00:01]} 19. axb4 {[%emt 0:01:47]} Nxb4 {[%emt 0:00:03]} 20. Ra4 {[%emt 0:00:06]} (20. Qe2 $142) 20... a5 {[%emt 0:00:38][%cal Od6d5]} 21. Qe2 {[%emt 0:00:58]} (21. Bf3 $17 Bf8 (21... Nxc2 22. Qh4 $16) 22. Qh4) 21... d5 $19 {[%emt 0:00:37]} 22. exd5 {[%emt 0:00:33]} exd5 {[%emt 0:00:02]} 23. Kh1 $2 {[%emt 0:00:52] [#] Now White is beyond hope.} (23. f5 $17 {might work better.}) 23... Re8 {[%emt 0:00:29]} (23... d4 $19 24. Ne4 Ne3 25. Bxe3 Ba6 (25... dxe3 $2 26. Nc3 $19)) 24. Qf2 {[%emt 0:00:44]} (24. Nxd5 $17 Bxd5 25. Bxd5 Nxd5 26. Rxc4) 24... Qd7 {[%emt 0:01:48][%cal Od5d4]} 25. Nc5 $2 {[%emt 0:00:15]} (25. f5) 25... Bxc5 {[%emt 0:00:07]} 26. Qxc5 {[%emt 0:00:02]} Re1+ {[%emt 0:00:01]} 27. Bf1 {[%emt 0:00:13]} Qxh3 {[%emt 0:00:04] Weighted Error Value: White=1.22/Black=0.30.  Loses game:     	White=1     	---        Mistake:       	White=6     	Black=2      Inaccurate:     	White=1     	---        OK:         	White=3     	Black=4      Best:        	---       	Black=2} 0-1

[Event "Polish University-ch Open 2024"]
[Site "Lublin"]
[Date "2024.02.23"]
[Round "1.15"]
[White "Pultorak, Jan"]
[Black "Ryk, Mikolaj"]
[Result "1-0"]
[ECO "A01"]
[WhiteElo "2303"]
[BlackElo "1499"]
[Annotator "TA"]
[PlyCount "49"]
[EventDate "2024.02.22"]
[EventType "swiss"]
[EventCountry "POL"]
[SourceTitle "playchess.com"]
[Source "ChessBase"]
[SourceQuality "1"]
[TimeControl "600+3"]

{[%evp 9,48,-6,0,-12,9,7,47,58,73,69,68,74,60,67,58,60,65,28,27,2,65,72,143,140,221,190,167,104,297,292,516,516,568,564,29986,29987,29987,29988,29997,29998,29999]} 1. b3 {[%emt 0:00:01]} d5 {[%emt 0:00:01]} 2. Bb2 {[%emt 0:00:01]} Nc6 {[%emt 0:00:04]} 3. e3 {[%emt 0:00:04]} e5 {[%emt 0:00:14][%cal Be7e5,Be5e4][%mdl 32]} 4. Nf3 {[%emt 0:00:20]} e4 {[%emt 0:01:09]} 5. Nd4 {[%emt 0:00:02]} Nxd4 {[%emt 0:00:05]} 6. Bxd4 {[%emt 0:00:02]} Nf6 {[%emt 0:00:04]} 7. c4 {[%emt 0:00:14]} Be6 {[%emt 0:00:24]} 8. Nc3 {[%emt 0:01:20] White is slightly better.} Be7 {[%emt 0:01:59]} 9. cxd5 {[%emt 0:00:08]} Bxd5 {[%emt 0:00:01]} 10. Qc2 {[%emt 0:00:30] White is more active.} c6 {[%emt 0:00:44]} 11. Nxd5 {[%emt 0:00:29]} Qxd5 {[%emt 0:00:06]} 12. Bc4 {[%emt 0:00:19]} Qf5 {[%emt 0:00:53]} 13. f3 {[%emt 0:01:03]} Qg6 {[%emt 0:00:12]} 14. O-O {[%emt 0:06:12]} O-O {[%emt 0:00:14]} (14... exf3 $11 15. Qxg6 hxg6) 15. fxe4 $14 {[%emt 0:00:00]} Qxe4 {[%emt 0:00:44]} (15... Nxe4 $142 16. Rf4 Ng5 17. Qxg6 hxg6) 16. Bd3 $16 {[%emt 0:00:00]} Qh4 {[%emt 0:00:15]} (16... Qe6 $16) 17. Rf4 $18 {[%emt 0:00:00]} Qh5 {[%emt 0:00:51] [#]} 18. Rf5 {[%emt 0:00:00]} ({White should play} 18. Rf3 $1 $18 {[%cal Rf3h3]} h6 19. Raf1) 18... Qh6 {[%emt 0:00:46] [#] A mistake that costs the game.} (18... Qh4 $16) 19. Rf3 $1 {[%emt 0:00:00][%cal Bf5f3,Bf3g3,Bg3h3][%mdl 32] Hoping for Rh3.} Qg5 $2 {[%emt 0:00:37]} (19... Nh5 20. Rh3 g6) 20. Rg3 {[%emt 0:00:00]} Qh4 {[%emt 0:00:11]} 21. Rh3 {[%emt 0:00:00]} Qg5 {[%emt 0:00:15]} 22. Bxh7+ {[%emt 0:00:00] A strong pair of Bishops. White mates.} Kh8 {[%emt 0:00:01]} 23. Bxf6 {[%emt 0:00:00]} Bxf6 {[%emt 0:00:04] [#]} 24. Bg8+ $1 {[%emt 0:00:00][%mdl 512]} Kxg8 {[%emt 0:00:03]} (24... Qh4 25. Rxh4+) 25. Qh7# {[%emt 0:00:00] Weighted Error Value: White=0.07 (flawless) /Black=0.73.  Loses game:     	---       	Black=1      Mistake:       	White=1     	Black=4      Inaccurate:     	White=1     	Black=2      OK:         	White=9     	Black=4      Best:        	White=2     	---        Strong:       	White=1     	---} 1-0

[Event "Polish University-ch Open 2024"]
[Site "Lublin"]
[Date "2024.02.23"]
[Round "1.16"]
[White "Baranowski, Michal"]
[Black "Suder, Jakub"]
[Result "0-1"]
[ECO "B31"]
[WhiteElo "1331"]
[BlackElo "2333"]
[Annotator "TA"]
[PlyCount "76"]
[EventDate "2024.02.22"]
[EventType "swiss"]
[EventCountry "POL"]
[SourceTitle "playchess.com"]
[Source "ChessBase"]
[SourceQuality "1"]
[TimeControl "600+3"]

{[%evp 9,76,0,0,-72,-4,-10,6,-19,3,-79,-78,-92,-82,-85,-77,-77,-60,-125,-74,-84,-80,-106,-56,-128,-134,-135,-134,-125,-61,-166,-163,-129,-141,-528,-533,-524,-393,-419,-413,-420,-433,-482,-463,-489,-485,-475,-468,-514,-515,-522,-402,-481,-458,-471,-455,-1010,-1008,-993,-947,-5147,-5143,-3089,-1188,-1075,-902,-1014,-1012,-29975,-6212]} 1. e4 {[%emt 0:00:01]} c5 {[%emt 0:00:03]} 2. Be2 {[%emt 0:00:01]} Nc6 {[%emt 0:00:02]} 3. d3 {[%emt 0:00:02]} Nf6 {[%emt 0:00:03]} 4. f4 {[%emt 0:00:01]} g6 {[%emt 0:00:31]} 5. Nf3 {[%emt 0:00:01]} Bg7 {[%emt 0:00:01]} 6. Be3 {[%emt 0:00:03] [#]} (6. c3 $11 {bleibt in der Remisbreite.}) 6... d6 {[%emt 0:00:02]} (6... d5 $1 $17) 7. c3 $11 {[%emt 0:00:02]} Rb8 {[%emt 0:00:19]} 8. O-O {[%emt 0:00:08] Die Stellung ist ausgeglichen.} O-O {[%emt 0:00:06]} 9. Nbd2 {[%emt 0:00:04]} (9. a4 $11) 9... Ng4 $17 {[%emt 0:00:07]} 10. Bf2 {[%emt 0:00:02]} Nxf2 {[%emt 0:00:03]} 11. Rxf2 {[%emt 0:00:19]} b5 {[%emt 0:00:02]} 12. a3 {[%emt 0:00:59]} a5 {[%emt 0:00:06]} 13. Rc1 {[%emt 0:00:16]} (13. g3 $15) 13... b4 {[%emt 0:00:02]} (13... Bh6 $142 14. Ne1 e5) 14. axb4 {[%emt 0:00:11]} axb4 {[%emt 0:00:02]} 15. Nf1 {[%emt 0:02:09]} Qa5 {[%emt 0:00:26]} (15... Bh6 $17 16. N3d2 f5) 16. d4 {[%emt 0:00:10]} ({Vorzuziehen ist} 16. Ra1 $15 Qb6 17. Ne3) 16... cxd4 {[%emt 0:00:31] Schwarz steht aktiver.} 17. cxd4 {[%emt 0:00:12] [#]} Qb6 {[%emt 0:00:07][%cal Rc6d4]} 18. e5 {[%emt 0:00:16]} dxe5 {[%emt 0:00:51]} (18... Rd8 $17 {Droht stark ...dxe5.} 19. d5 Na5) 19. d5 {[%emt 0:01:10]} ({Besser ist} 19. dxe5 $15 Bf5 20. Qd2) 19... Nd4 $19 {[%emt 0:00:15]} 20. Nxe5 {[%emt 0:01:12]} Rd8 {[%emt 0:01:02][%cal Oe7e6]} 21. Rc6 $2 {[%emt 0:00:42][%mdl 8192] Ein Fehler, der zur Niederlage führt.} (21. Ne3 $17 {leistet mehr Widerstand.}) 21... Nxc6 {[%emt 0:00:11]} 22. Nxc6 {[%emt 0:00:04]} Qxc6 {[%emt 0:00:54]} 23. dxc6 {[%emt 0:00:05]} Rxd1 {[%emt 0:00:02]} 24. Bxd1 {[%emt 0:00:02]} Bd4 {[%emt 0:00:01][%cal Ob8a8] Und jetzt ...Ra8! wäre schön.} 25. Nd2 {[%emt 0:00:56]} Ra8 {[%emt 0:00:17]} ({Schwächer ist} 25... Bxf2+ 26. Kxf2 Be6 27. Ke3 $19) 26. Nb3 {[%emt 0:00:21] Es drohte Ra1} Bxf2+ {[%emt 0:00:27]} 27. Kxf2 {[%emt 0:00:02][%mdl 4096] Endspiel. KRB-KBN} Ra2 {[%emt 0:04:51]} 28. Nd4 {[%emt 0:00:40]} Rxb2+ {[%emt 0:00:00]} 29. Ke3 {[%emt 0:00:20]} Rb1 {[%emt 0:00:00]} 30. Ba4 {[%emt 0:00:24]} Kf8 {[%emt 0:00:00]} 31. c7 {[%emt 0:00:16]} Rc1 {[%emt 0:00:00]} 32. Bc6 {[%emt 0:00:13] [#]} (32. Nc2 $142) 32... b3 $1 {[%emt 0:00:00]} 33. Be4 {[%emt 0:00:07]} (33. Nxb3 Rxc6) 33... Rxc7 {[%emt 0:00:00] Droht ...b2 und aus.} 34. Kd3 {[%emt 0:00:03]} b2 {[%emt 0:00:00]} 35. Kd2 {[%emt 0:00:02]} Bb7 {[%emt 0:00:00]} 36. Bd3 {[%emt 0:00:08]} Ba6 {[%emt 0:00:00] ( -> ...Bxd3)} 37. Bb1 {[%emt 0:00:02]} Rc1 {[%emt 0:00:00]} 38. Ba2 {[%emt 0:00:03]} Bc4 {[%emt 0:00:00] Gewichteter Fehlerwert: Weiß=0.86/Schwarz=0.48.  Verlustzug:     	Weiß=1     	---        Fehler:       	Weiß=5     	Schwarz=4     Ungenau:       	Weiß=1     	---        OK:         	Weiß=6     	Schwarz=10    Bester:       	---       	Schwarz=4} (38... Ra1 $142 39. Kc2 Rxa2 40. Kb1 Bd3+ 41. Nc2 Bxc2+ 42. Kxc2 b1=R+ 43. Kxb1 Rxg2 44. h3 h5 45. Kc1 f5 46. Kd1 g5 47. fxg5 f4 48. h4 f3 49. Ke1 e5 50. Kf1 e4 51. Ke1 e3 52. Kd1 Re2 (52... Rd2+ {ist ein Selbstmatt.} 53. Ke1 Rd6 54. g6 Kg7 55. Kf1 Rd1#) 53. g6 Kg7 54. Kc1 f2 55. Kd1 f1=Q#) 0-1

[Event "Polish University-ch Open 2024"]
[Site "Lublin"]
[Date "2024.02.23"]
[Round "1.17"]
[White "Brozyna, Mateusz"]
[Black "Ciesielski, Szymon"]
[Result "1-0"]
[ECO "C01"]
[WhiteElo "2259"]
[BlackElo "1512"]
[Annotator "TA"]
[PlyCount "78"]
[EventDate "2024.02.22"]
[EventType "swiss"]
[EventCountry "POL"]
[SourceTitle "playchess.com"]
[Source "ChessBase"]
[SourceQuality "1"]
[TimeControl "600+3"]

{[%evp 9,78,62,72,70,67,58,68,53,85,81,104,104,113,54,102,87,134,125,148,143,260,132,168,176,304,302,283,267,293,285,305,284,288,191,287,245,231,144,175,175,373,381,452,460,873,852,783,452,780,778,909,902,1011,1011,29985,29986,29990,261,285,283,232,194,537,306,299,314,320,275,252,58,142]} 1. e4 {[%emt 0:00:01]} Nc6 {[%emt 0:00:07]} 2. Nf3 {[%emt 0:00:03]} e6 {[%emt 0:00:04]} 3. d4 {[%emt 0:00:19]} Nf6 {[%emt 0:00:27]} 4. Nbd2 {[%emt 0:00:40]} Be7 {[%emt 0:00:15]} 5. Bd3 {[%emt 0:00:14]} h6 {[%emt 0:00:27]} 6. O-O {[%emt 0:00:06]} d6 {[%emt 0:00:06]} 7. Re1 {[%emt 0:00:10]} e5 {[%emt 0:00:07]} 8. dxe5 {[%emt 0:00:37]} dxe5 {[%emt 0:00:16]} 9. Bb5 {[%emt 0:00:28]} Bg4 {[%emt 0:00:28]} 10. h3 {[%emt 0:00:10]} Bxf3 {[%emt 0:00:05]} 11. Nxf3 {[%emt 0:00:33]} ({White should play} 11. Bxc6+ $16 bxc6 12. Qxf3 (12. Nxf3 Qxd1 13. Rxd1 Bc5 $16)) 11... Bd6 {[%emt 0:00:09]} (11... Qxd1 $14 {deserves consideration.} 12. Rxd1 Bd6) 12. Nh4 {[%emt 0:00:51]} Qd7 {[%emt 0:01:27]} (12... Bb4 $142) 13. Nf5 $16 {[%emt 0:00:17]} O-O-O {[%emt 0:00:04]} 14. Qf3 {[%emt 0:00:39] White is more active.} Ne8 {[%emt 0:01:39]} (14... a6 $16) 15. c3 {[%emt 0:00:15]} (15. Rd1 $18) 15... a6 {[%emt 0:00:07]} 16. Ba4 {[%emt 0:00:02]} b5 {[%emt 0:00:32]} (16... Bf8 $142 17. Bb3 Nd6) 17. Bb3 $18 {[%emt 0:00:10]} Na5 {[%emt 0:00:18]} 18. Be3 {[%emt 0:00:16]} Nxb3 {[%emt 0:00:30]} 19. axb3 {[%emt 0:00:02]} Qc6 {[%emt 0:00:04] [#]} 20. c4 $1 {[%emt 0:00:40][%mdl 512]} Bb4 {[%emt 0:00:56]} 21. Rec1 {[%emt 0:00:05]} Qb7 {[%emt 0:00:02]} (21... Rd7 $142 22. Qe2 Qxe4) 22. cxb5 {[%emt 0:01:10]} Qxb5 {[%emt 0:00:05]} 23. Qg3 {[%emt 0:00:18]} a5 {[%emt 0:00:27][%cal Ba6a5,Ba5b4][%mdl 32]} 24. Rc4 {[%emt 0:00:26][%cal Oc4b4]} (24. Nxg7 Rg8 25. Qg4+ (25. Bxh6 $2 Nxg7 26. Bxg7 f6 $19) 25... Rd7 26. Bxh6 Nxg7 $11 (26... f5 $2 27. exf5 Rgxg7 28. Bxg7 $16)) 24... g5 $2 {[%emt 0:00:14]} (24... Rd3 {might work better.} 25. Rac1 (25. Nxg7 Rg8 $11) 25... g6) 25. Rac1 {[%emt 0:00:04]} Rd7 {[%emt 0:00:17]} 26. Bc5 {[%emt 0:00:06]} f6 {[%emt 0:00:52]} (26... Bd2 $142 27. R1c2 (27. Qxe5 f6 $18) 27... Kb8) 27. Bxb4 {[%emt 0:00:18]} axb4 {[%emt 0:00:02]} 28. Qg4 {[%emt 0:00:07] [#] And now Ne7+ would win.} h5 {[%emt 0:00:11]} (28... Kb8 $142 29. Rc5 Qb7) 29. Qe2 {[%emt 0:00:46]} Qb7 {[%emt 0:00:05]} 30. Qe1 {[%emt 0:00:02]} Nd6 {[%emt 0:00:36]} 31. Rxb4 {[%emt 0:00:02]} Qa8 {[%emt 0:00:18]} 32. Ra1 {[%emt 0:00:02][%cal Ra1a8]} Qc6 {[%emt 0:00:01]} 33. Nxd6+ $2 {[%emt 0:00:10]} (33. Qc3 {mates} Qxe4 34. Rxe4 (34. Nxd6+ Rxd6 35. Rxe4 Rh7 $18) 34... Kd8 35. Ra8+ (35. Nxd6 Rxd6 36. Ra8+ Ke7 37. Rxh8 Rd1+ 38. Kh2 Ke6 39. Qxc7 Rd7 40. Re8+ Kf5) 35... Nc8 36. Qc6 (36. Rxc8+ Kxc8 37. Qc6 Rd1+ 38. Kh2 Ra1 39. Rb4 Ra6 40. Qxa6+ Kd7 41. Rc4 Rh7 42. Qc6+ Kd8 43. Ra4 Rh8 44. Ra8#) 36... Rd1+ 37. Re1 (37. Kh2 Rd6 38. Nxd6 Ke7) 37... Rxe1+ 38. Kh2) 33... Rxd6 {[%emt 0:00:03]} 34. Rc4 {[%emt 0:00:01]} Qb7 {[%emt 0:00:03]} 35. Qe3 {[%emt 0:00:09] Black must now prevent Ra7.} Rb6 $2 {[%emt 0:00:04]} (35... Rhd8 {is tougher.} 36. Ra7 Qb6 37. Qxb6 Rxb6) 36. Qc3 {[%emt 0:00:09] Strongly threatening Rca4.} Rd8 {[%emt 0:00:08]} 37. Rca4 {[%emt 0:00:06] Threatens to win with Qc4.} Kd7 {[%emt 0:00:10]} 38. Ra7 {[%emt 0:00:04]} Qc6 {[%emt 0:00:01]} 39. Rd1+ $2 {[%emt 0:00:02]} (39. Qf3 $18 {aiming for h4.} Rh8 40. Qd1+ Kc8 41. b4) 39... Ke8 {[%emt 0:00:13] Weighted Error Value: White=0.59/Black=0.74.  Missed win:     	White=1     	---        Mistake:       	White=2     	Black=9      Inaccurate:     	White=3     	Black=1      OK:         	White=12    	Black=9      Best:        	White=2     	---} (39... Kc8 $1 $14 40. Rxd8+ Kxd8) 1-0